[Event "20. Dolomitenbank Open-A 2019"]
[Site "Lienz"]
[Date "2019.02.10"]
[Round "2.3"]
[White "Kunin, Vitaly"]
[Black "Fecker, Noah"]
[Result "1-0"]
[ECO "A48"]
[WhiteElo "2531"]
[BlackElo "2340"]
[Annotator "ChessBase"]
[PlyCount "89"]
[EventDate "2019.02.09"]
[EventType "swiss"]
[EventCountry "AUT"]
[SourceTitle "playchess.com"]
[Source "ChessBase"]
[SourceQuality "1"]
[TimeControl "40/5400+30:1800+30"]

1. d4 {[%emt 0:02:55]} Nf6 {[%emt 0:00:00]} 2. Nf3 {[%emt 0:00:44]} g6 {[%emt 0:00:07]} 3. Nc3 {[%emt 0:01:46]} d5 {[%emt 0:01:52]} 4. Bf4 {[%emt 0:00:08]} Bg7 {[%emt 0:02:55]} 5. Nb5 {[%emt 0:00:34]} Na6 {[%emt 0:00:08]} 6. e3 {[%emt 0:00:42]} c6 {[%emt 0:04:44]} 7. Na3 {[%emt 0:02:54]} O-O {[%emt 0:02:47]} 8. Be2 {[%emt 0:03:22]} Bf5 {[%emt 0:10:20]} 9. h3 {[%emt 0:00:39]} h6 {[%emt 0:05:13]} 10. O-O {[%emt 0:05:04]} Nc7 {[%emt 0:04:59]} 11. c4 {[%emt 0:04:10]} g5 {[%emt 0:14:14]} 12. Be5 {[%emt 0:02:24]} Nd7 {[%emt 0:03:25]} 13. Bh2 {[%emt 0:11:41]} Nb6 {[%emt 0:11:19]} 14. Rc1 {[%emt 0:01:42]} dxc4 {[%emt 0:01:53]} 15. Nxc4 {[%emt 0:00:45]} Nxc4 {[%emt 0:02:01]} 16. Bxc4 {[%emt 0:00:38]} Nd5 {[%emt 0:00:26]} 17. Qe2 {[%emt 0:03:54]} Nb6 {[%emt 0:03:34]} 18. Bb3 {[%emt 0:00:34]} e6 {[%emt 0:02:36]} 19. Ne5 {[%emt 0:08:46]} Qe7 {[%emt 0:03:49]} 20. f4 {[%emt 0:00:34]} Be4 {[%emt 0:05:50]} 21. fxg5 {[%emt 0:00:55]} hxg5 {[%emt 0:02:13]} 22. Qg4 {[%emt 0:05:08]} Bf5 {[%emt 0:06:06]} 23. Rxf5 {[%emt 0:04:19]} exf5 {[%emt 0:00:02]} 24. Qxf5 {[%emt 0:00:30]} Qf6 {[%emt 0:02:28]} 25. Qd3 {[%emt 0:02:51]} Qh6 {[%emt 0:02:34]} 26. Rf1 {[%emt 0:15:34]} Nd5 {[%emt 0:01:26]} 27. Rf5 {[%emt 0:00:17]} Rad8 {[%emt 0:02:50]} 28. e4 {[%emt 0:06:51]} Nf6 {[%emt 0:03:05]} 29. Nxf7 {[%emt 0:03:49]} Rxf7 {[%emt 0:00:01]} 30. Bxf7+ {[%emt 0:00:12]} Kxf7 {[%emt 0:00:02]} 31. e5 {[%emt 0:00:11]} Rd5 {[%emt 0:01:16]} 32. exf6 {[%emt 0:02:01]} Rxf5 {[%emt 0:00:22]} 33. fxg7 {[%emt 0:03:15]} Qe6 {[%emt 0:01:05]} 34. Be5 {[%emt 0:00:09]} Rxe5 {[%emt 0:00:36]} 35. dxe5 {[%emt 0:00:35]} Kxg7 {[%emt 0:00:33]} 36. Qe3 {[%emt 0:00:59]} Kg6 {[%emt 0:00:19]} 37. b3 {[%emt 0:04:19]} b6 {[%emt 0:00:29]} 38. g4 {[%emt 0:00:07]} c5 {[%emt 0:00:16]} 39. Qe4+ {[%emt 0:00:15]} Kh6 {[%emt 0:00:46]} 40. Qf5 {[%emt 0:01:00]} Qd5 {[%emt 0:00:05]} 41. Qf6+ {[%emt 0:31:24]} Kh7 {[%emt 0:31:11]} 42. Qe7+ {[%emt 0:00:15]} Kh8 {[%emt 0:00:00]} 43. Qd6 {[%emt 0:00:00]} Qf3 {[%emt 0:00:00]} 44. Qh6+ {[%emt 0:00:00]} Kg8 {[%emt 0:00:00]} 45. Qxg5+ {[%emt 0:00:00]} 1-0

[Event "20. Dolomitenbank Open-A 2019"]
[Site "Lienz"]
[Date "2019.02.10"]
[Round "2.4"]
[White "Singer, Christoph"]
[Black "Maiorov, Nikita"]
[Result "1/2-1/2"]
[ECO "C54"]
[WhiteElo "2338"]
[BlackElo "2523"]
[Annotator "ChessBase"]
[PlyCount "99"]
[EventDate "2019.02.09"]
[EventType "swiss"]
[EventCountry "AUT"]
[SourceTitle "playchess.com"]
[Source "ChessBase"]
[SourceQuality "1"]
[TimeControl "40/5400+30:1800+30"]

1. e4 {[%emt 0:00:00]} e5 {[%emt 0:00:24]} 2. Nf3 {[%emt 0:00:00]} Nc6 {[%emt 0:00:17]} 3. Bc4 {[%emt 0:00:00]} Bc5 {[%emt 0:00:04]} 4. c3 {[%emt 0:00:00]} Nf6 {[%emt 0:00:03]} 5. d3 {[%emt 0:00:03]} a6 {[%emt 0:00:51]} 6. Bb3 {[%emt 0:00:36]} d6 {[%emt 0:00:13]} 7. Bg5 {[%emt 0:03:13]} h6 {[%emt 0:02:49]} 8. Bh4 {[%emt 0:00:04]} Qe7 {[%emt 0:00:24]} 9. Nbd2 {[%emt 0:00:26]} Be6 {[%emt 0:00:29]} 10. h3 {[%emt 0:09:51]} Ba7 {[%emt 0:01:50]} 11. Bxe6 {[%emt 0:25:59]} Qxe6 {[%emt 0:01:09]} 12. Qb3 {[%emt 0:00:25]} Qxb3 {[%emt 0:01:09]} 13. axb3 {[%emt 0:01:35]} Nh5 {[%emt 0:00:31]} 14. Bg3 {[%emt 0:01:28]} Nxg3 {[%emt 0:03:31]} 15. fxg3 {[%emt 0:01:01]} h5 {[%emt 0:01:42]} 16. Ke2 {[%emt 0:03:12]} Nd8 {[%emt 0:08:07]} 17. Nh4 {[%emt 0:24:09]} Ne6 {[%emt 0:00:47]} 18. Raf1 {[%emt 0:00:17]} g6 {[%emt 0:02:57]} 19. Nc4 {[%emt 0:05:50]} Ke7 {[%emt 0:00:52]} 20. Na5 {[%emt 0:04:17]} Rab8 {[%emt 0:00:51]} 21. b4 {[%emt 0:00:04]} c6 {[%emt 0:00:46]} 22. Rf3 {[%emt 0:01:16]} d5 {[%emt 0:10:15]} 23. exd5 {[%emt 0:02:57]} cxd5 {[%emt 0:00:04]} 24. Rff1 {[%emt 0:01:01]} Bb6 {[%emt 0:07:10]} 25. Ra1 {[%emt 0:03:03]} e4 {[%emt 0:05:24]} 26. dxe4 {[%emt 0:02:47]} dxe4 {[%emt 0:00:04]} 27. Rad1 {[%emt 0:00:33]} Rhd8 {[%emt 0:02:48]} 28. Rxd8 {[%emt 0:00:40]} Rxd8 {[%emt 0:01:38]} 29. Nxb7 {[%emt 0:00:42]} Rb8 {[%emt 0:01:33]} 30. Na5 {[%emt 0:00:55]} Bxa5 {[%emt 0:00:11]} 31. bxa5 {[%emt 0:00:05]} Rxb2+ {[%emt 0:00:06]} 32. Ke3 {[%emt 0:00:05]} Nc5 {[%emt 0:00:49]} 33. g4 {[%emt 0:04:28]} hxg4 {[%emt 0:00:52]} 34. hxg4 {[%emt 0:00:02]} Kf6 {[%emt 0:12:33]} 35. Kd4 {[%emt 0:00:58]} Rb5 {[%emt 0:03:30]} 36. Rf1+ {[%emt 0:00:37]} Kg5 {[%emt 0:01:39]} 37. g3 {[%emt 0:00:19]} Nb3+ {[%emt 0:01:47]} 38. Ke3 {[%emt 0:00:48]} Rb7 {[%emt 0:00:24]} 39. Rf4 {[%emt 0:01:54]} Nc5 {[%emt 0:02:34]} 40. Ng2 {[%emt 0:02:13]} Rb2 {[%emt 0:06:50]} 41. Ne1 {[%emt 0:04:37]} f6 {[%emt 0:01:19]} 42. Rf1 {[%emt 0:00:41]} Rb1 {[%emt 0:00:35]} 43. Nf3+ {[%emt 0:00:07]} exf3 {[%emt 0:00:29]} 44. Rxb1 {[%emt 0:00:08]} Kxg4 {[%emt 0:00:09]} 45. Rf1 {[%emt 0:07:16]} f5 {[%emt 0:00:27]} 46. Rxf3 {[%emt 0:01:03]} Nb3 {[%emt 0:00:11]} 47. Kf2 {[%emt 0:00:47]} g5 {[%emt 0:00:55]} 48. Rd3 {[%emt 0:02:12]} Nxa5 {[%emt 0:01:15]} 49. Rd6 {[%emt 0:04:29]} Nb3 {[%emt 0:02:01]} 50. Rxa6 {[%emt 0:09:35]} 1/2-1/2

[Event "20. Dolomitenbank Open-A 2019"]
[Site "Lienz"]
[Date "2019.02.10"]
[Round "2.5"]
[White "Prusikin, Michael"]
[Black "Injac, Teodora"]
[Result "1/2-1/2"]
[ECO "E73"]
[WhiteElo "2517"]
[BlackElo "2325"]
[Annotator "ChessBase"]
[PlyCount "104"]
[EventDate "2019.02.09"]
[EventType "swiss"]
[EventCountry "AUT"]
[SourceTitle "playchess.com"]
[Source "ChessBase"]
[SourceQuality "1"]
[TimeControl "40/5400+30:1800+30"]

1. d4 {[%emt 0:00:00]} Nf6 {[%emt 0:00:00]} 2. c4 {[%emt 0:00:00]} g6 {[%emt 0:00:00]} 3. Nc3 {[%emt 0:00:00]} Bg7 {[%emt 0:00:00]} 4. e4 {[%emt 0:00:00]} d6 {[%emt 0:00:00]} 5. Be2 {[%emt 0:00:00]} O-O {[%emt 0:00:05]} 6. Be3 {[%emt 0:00:03]} Na6 {[%emt 0:03:03]} 7. Nf3 {[%emt 0:01:32]} e5 {[%emt 0:01:16]} 8. O-O {[%emt 0:00:07]} c6 {[%emt 0:00:47]} 9. dxe5 {[%emt 0:02:05]} dxe5 {[%emt 0:00:12]} 10. Qxd8 {[%emt 0:00:19]} Rxd8 {[%emt 0:00:02]} 11. h3 {[%emt 0:01:08]} Re8 {[%emt 0:01:35]} 12. c5 {[%emt 0:07:05]} Bf8 {[%emt 0:05:38]} 13. Bxa6 {[%emt 0:00:54]} bxa6 {[%emt 0:00:02]} 14. Rac1 {[%emt 0:07:57]} Rb8 {[%emt 0:05:07]} 15. b3 {[%emt 0:01:25]} Nh5 {[%emt 0:05:28]} 16. Nd2 {[%emt 0:16:15]} Be6 {[%emt 0:20:55]} 17. Na4 {[%emt 0:06:41]} Nf4 {[%emt 0:05:54]} 18. Bxf4 {[%emt 0:04:59]} exf4 {[%emt 0:00:02]} 19. Nf3 {[%emt 0:07:09]} Rb4 {[%emt 0:14:26]} 20. Rfe1 {[%emt 0:09:03]} Bc8 {[%emt 0:01:36]} 21. Rcd1 {[%emt 0:06:49]} Rbxe4 {[%emt 0:02:52]} 22. Rxe4 {[%emt 0:00:13]} Rxe4 {[%emt 0:00:04]} 23. Rd8 {[%emt 0:00:18]} Be6 {[%emt 0:12:10]} 24. Nc3 {[%emt 0:01:20]} Rb4 {[%emt 0:00:18]} 25. Nd4 {[%emt 0:05:28]} Kg7 {[%emt 0:05:37]} 26. Nxe6+ {[%emt 0:13:21]} fxe6 {[%emt 0:00:08]} 27. Rd7+ {[%emt 0:00:05]} Kf6 {[%emt 0:13:07]} 28. Rxa7 {[%emt 0:00:32]} Bxc5 {[%emt 0:00:55]} 29. Rxa6 {[%emt 0:00:12]} Bb6 {[%emt 0:02:37]} 30. Na4 {[%emt 0:01:24]} Bd8 {[%emt 0:00:16]} 31. Rxc6 {[%emt 0:00:18]} Rd4 {[%emt 0:00:09]} 32. Nc3 {[%emt 0:01:14]} Kf5 {[%emt 0:01:06]} 33. f3 {[%emt 0:07:24]} Rd2 {[%emt 0:00:28]} 34. a4 {[%emt 0:00:27]} Bh4 {[%emt 0:00:28]} 35. Ne4 {[%emt 0:00:45]} Rd1+ {[%emt 0:00:25]} 36. Kh2 {[%emt 0:00:01]} Rb1 {[%emt 0:00:35]} 37. Rc5+ {[%emt 0:01:06]} e5 {[%emt 0:00:03]} 38. Rb5 h5 {[%emt 0:00:38]} 39. Rb6 {[%emt 0:00:27]} Bd8 {[%emt 0:00:51]} 40. Rb8 {[%emt 0:00:06]} Bh4 {[%emt 0:00:32]} 41. a5 {[%emt 0:03:34]} Ra1 {[%emt 0:03:51]} 42. b4 {[%emt 0:01:20]} g5 {[%emt 0:01:38]} 43. Rh8 {[%emt 0:04:39]} Kg6 {[%emt 0:01:46]} 44. Ra8 {[%emt 0:00:43]} Be1 {[%emt 0:02:32]} 45. a6 {[%emt 0:12:37]} h4 {[%emt 0:00:37]} 46. g4 {[%emt 0:00:06]} hxg3+ {[%emt 0:03:40]} 47. Kg2 {[%emt 0:00:04]} Ra2+ {[%emt 0:09:19]} 48. Kg1 {[%emt 0:00:04]} Bxb4 {[%emt 0:01:40]} 49. a7 {[%emt 0:00:47]} Ra1+ {[%emt 0:01:40]} 50. Kg2 {[%emt 0:00:00]} Ra2+ {[%emt 0:00:06]} 51. Kg1 {[%emt 0:01:25]} Ra1+ {[%emt 0:01:22]} 52. Kg2 {[%emt 0:00:01]} Ra2+ {[%emt 0:00:06]} 1/2-1/2

[Event "20. Dolomitenbank Open-A 2019"]
[Site "Lienz"]
[Date "2019.02.10"]
[Round "2.6"]
[White "Liu, Zhaoqi"]
[Black "Sanal, Vahap"]
[Result "1-0"]
[ECO "A21"]
[WhiteElo "2323"]
[BlackElo "2497"]
[Annotator "ChessBase"]
[PlyCount "79"]
[EventDate "2019.02.09"]
[EventType "swiss"]
[EventCountry "AUT"]
[SourceTitle "playchess.com"]
[Source "ChessBase"]
[SourceQuality "1"]
[TimeControl "40/5400+30:1800+30"]

1. c4 {[%emt 0:00:00]} e5 {[%emt 0:00:00]} 2. Nc3 {[%emt 0:00:00]} Bb4 {[%emt 0:00:00]} 3. Nd5 {[%emt 0:00:00]} Bc5 {[%emt 0:00:50]} 4. Nf3 {[%emt 0:00:01]} e4 {[%emt 0:01:43]} 5. Ng5 {[%emt 0:04:52]} f5 {[%emt 0:13:16]} 6. d4 {[%emt 0:00:44]} Bf8 {[%emt 0:00:30]} 7. Bf4 {[%emt 0:02:37]} Na6 {[%emt 0:03:16]} 8. e3 {[%emt 0:04:40]} c6 {[%emt 0:03:26]} 9. Nc3 {[%emt 0:00:22]} Be7 {[%emt 0:03:11]} 10. c5 {[%emt 0:23:47]} Nb4 {[%emt 0:12:39]} 11. Be5 {[%emt 0:07:47]} Nf6 {[%emt 0:03:00]} 12. Bc4 {[%emt 0:05:08]} Nbd5 {[%emt 0:02:12]} 13. h4 {[%emt 0:03:43]} Qa5 {[%emt 0:07:23]} 14. O-O {[%emt 0:04:34]} h6 15. Nh3 {[%emt 0:05:07]} Nxc3 {[%emt 0:17:42]} 16. bxc3 {[%emt 0:00:11]} b6 {[%emt 0:07:55]} 17. Nf4 {[%emt 0:02:56]} bxc5 {[%emt 0:02:32]} 18. d5 {[%emt 0:17:49]} Ng4 {[%emt 0:05:48]} 19. Ng6 {[%emt 0:01:59]} Nxe5 {[%emt 0:01:12]} 20. Nxe5 {[%emt 0:00:16]} Qxc3 {[%emt 0:05:12]} 21. Qh5+ {[%emt 0:00:16]} Kd8 {[%emt 0:00:02]} 22. Nf7+ {[%emt 0:00:38]} Kc7 {[%emt 0:00:02]} 23. Rac1 {[%emt 0:00:29]} Qf6 {[%emt 0:02:33]} 24. Nxh8 {[%emt 0:00:08]} Bb7 {[%emt 0:01:27]} 25. dxc6 {[%emt 0:00:28]} Bxc6 {[%emt 0:00:56]} 26. Ng6 {[%emt 0:00:32]} Bd8 {[%emt 0:01:44]} 27. Nf4 {[%emt 0:00:34]} Rb8 {[%emt 0:01:08]} 28. Qf7 {[%emt 0:03:11]} Qxf7 {[%emt 0:01:45]} 29. Bxf7 {[%emt 0:00:03]} g5 {[%emt 0:00:05]} 30. hxg5 {[%emt 0:00:11]} hxg5 {[%emt 0:00:01]} 31. Nd5+ {[%emt 0:01:46]} Kd6 {[%emt 0:00:11]} 32. Nc3 {[%emt 0:00:08]} Ke5 {[%emt 0:00:51]} 33. Rfd1 {[%emt 0:00:50]} d6 {[%emt 0:00:02]} 34. Bd5 {[%emt 0:00:23]} Be8 {[%emt 0:00:07]} 35. Bc4 {[%emt 0:00:48]} Bc6 {[%emt 0:00:02]} 36. Rb1 {[%emt 0:01:03]} Bb6 {[%emt 0:00:09]} 37. Nd5 {[%emt 0:00:23]} f4 {[%emt 0:00:20]} 38. a4 {[%emt 0:02:06]} Rb7 {[%emt 0:00:42]} 39. Nxb6 {[%emt 0:01:42]} axb6 {[%emt 0:00:02]} 40. a5 {[%emt 0:00:18] Kd5} 1-0

[Event "20. Dolomitenbank Open-A 2019"]
[Site "Lienz"]
[Date "2019.02.10"]
[Round "2.7"]
[White "Schreiner, Peter"]
[Black "Ruff, Maximilian"]
[Result "0-1"]
[ECO "A04"]
[WhiteElo "2476"]
[BlackElo "2312"]
[Annotator "ChessBase"]
[PlyCount "75"]
[EventDate "2019.02.09"]
[EventType "swiss"]
[EventCountry "AUT"]
[SourceTitle "playchess.com"]
[Source "ChessBase"]
[SourceQuality "1"]
[TimeControl "40/5400+30:1800+30"]

1. Nf3 {[%emt 0:00:00]} c5 {[%emt 0:01:09]} 2. c4 {[%emt 0:01:27]} g6 {[%emt 0:00:07]} 3. Nc3 {[%emt 0:02:47]} Bg7 {[%emt 0:00:06]} 4. e3 {[%emt 0:03:24]} Nf6 {[%emt 0:00:26]} 5. d4 O-O 6. d5 {[%emt 0:01:18]} e6 {[%emt 0:01:48]} 7. Be2 {[%emt 0:00:49]} exd5 {[%emt 0:01:17]} 8. cxd5 {[%emt 0:00:18]} d6 {[%emt 0:00:14]} 9. O-O {[%emt 0:00:46]} Bg4 {[%emt 0:05:17]} 10. Re1 {[%emt 0:05:37]} Re8 {[%emt 0:01:35]} 11. Nd2 {[%emt 0:10:55]} Bxe2 {[%emt 0:00:18]} 12. Rxe2 {[%emt 0:00:07]} Nbd7 {[%emt 0:08:09]} 13. h3 {[%emt 0:02:24]} a6 {[%emt 0:22:55]} 14. a4 {[%emt 0:02:19]} Ne5 {[%emt 0:01:00]} 15. a5 {[%emt 0:07:16]} Nh5 {[%emt 0:09:56]} 16. Qc2 {[%emt 0:05:28]} f5 {[%emt 0:02:18]} 17. f4 {[%emt 0:12:22]} Nd7 {[%emt 0:06:18]} 18. Nf3 {[%emt 0:01:24]} Ng3 {[%emt 0:02:46]} 19. Re1 {[%emt 0:01:42]} h6 {[%emt 0:04:56]} 20. Kh2 {[%emt 0:09:28]} Ne4 {[%emt 0:00:54]} 21. Nxe4 {[%emt 0:13:28]} Rxe4 {[%emt 0:01:35]} 22. Bd2 {[%emt 0:02:04]} Nf6 {[%emt 0:08:15]} 23. Rab1 {[%emt 0:07:32]} Rc8 {[%emt 0:08:42]} 24. Qd1 {[%emt 0:04:53]} Qe7 {[%emt 0:01:14]} 25. b4 {[%emt 0:01:11]} c4 {[%emt 0:02:36]} 26. Bc1 {[%emt 0:00:26]} Qf7 {[%emt 0:03:04]} 27. b5 {[%emt 0:00:10]} Nxd5 {[%emt 0:00:57]} 28. bxa6 {[%emt 0:00:15]} bxa6 {[%emt 0:01:02]} 29. Qc2 {[%emt 0:00:24]} c3 {[%emt 0:02:10]} 30. Qd3 {[%emt 0:00:57]} Rec4 {[%emt 0:03:07]} 31. g4 {[%emt 0:02:14]} fxg4 {[%emt 0:00:46]} 32. hxg4 {[%emt 0:00:02]} Nf6 {[%emt 0:00:22]} 33. g5 {[%emt 0:00:43]} Ne4 {[%emt 0:00:09]} 34. gxh6 {[%emt 0:00:42]} Bxh6 {[%emt 0:00:06]} 35. Rg1 {[%emt 0:00:25]} Qf5 {[%emt 0:01:19]} 36. Nh4 {[%emt 0:01:36]} Qh5 {[%emt 0:00:05]} 37. Rxg6+ {[%emt 0:00:27]} Kh8 {[%emt 0:00:37]} 38. Ra1 0-1

[Event "20. Dolomitenbank Open-A 2019"]
[Site "Lienz"]
[Date "2019.02.10"]
[Round "2.8"]
[White "Thakur, Akash"]
[Black "Ankit, R. Rajpara"]
[Result "0-1"]
[ECO "B19"]
[WhiteElo "2308"]
[BlackElo "2451"]
[Annotator "ChessBase"]
[PlyCount "138"]
[EventDate "2019.02.09"]
[EventType "swiss"]
[EventCountry "AUT"]
[SourceTitle "playchess.com"]
[Source "ChessBase"]
[SourceQuality "1"]
[TimeControl "40/5400+30:1800+30"]

1. e4 {[%emt 0:00:00]} c6 {[%emt 0:00:00]} 2. d4 {[%emt 0:00:00]} d5 {[%emt 0:00:00]} 3. Nc3 {[%emt 0:00:00]} dxe4 {[%emt 0:00:10]} 4. Nxe4 {[%emt 0:00:00]} Bf5 {[%emt 0:00:53]} 5. Ng3 {[%emt 0:00:02]} Bg6 {[%emt 0:00:06]} 6. h4 {[%emt 0:00:04]} h6 {[%emt 0:00:09]} 7. Nf3 {[%emt 0:00:05]} Nd7 {[%emt 0:00:13]} 8. h5 {[%emt 0:00:13]} Bh7 {[%emt 0:00:07]} 9. Bd3 {[%emt 0:00:04]} Bxd3 {[%emt 0:00:09]} 10. Qxd3 {[%emt 0:00:05]} e6 {[%emt 0:00:24]} 11. Bd2 {[%emt 0:00:34]} Ngf6 {[%emt 0:00:19]} 12. O-O-O {[%emt 0:00:54]} Be7 {[%emt 0:00:11]} 13. Ne4 {[%emt 0:03:52]} Nxe4 {[%emt 0:00:15]} 14. Qxe4 {[%emt 0:00:04]} Nf6 {[%emt 0:00:18]} 15. Qe2 {[%emt 0:00:08]} Qd5 {[%emt 0:00:32]} 16. Kb1 {[%emt 0:00:45]} Qb5 {[%emt 0:00:48]} 17. c4 {[%emt 0:05:13]} Qf5+ {[%emt 0:01:03]} 18. Ka1 {[%emt 0:00:05]} Qe4 {[%emt 0:09:06]} 19. Be3 {[%emt 0:14:50]} Ng4 {[%emt 0:06:58]} 20. Nd2 {[%emt 0:00:37]} Qf5 {[%emt 0:00:15]} 21. f3 {[%emt 0:02:00]} Nxe3 {[%emt 0:00:51]} 22. Qxe3 {[%emt 0:00:04]} Bg5 {[%emt 0:08:41]} 23. Qe4 {[%emt 0:03:54]} O-O-O {[%emt 0:05:44]} 24. Nb3 {[%emt 0:14:15]} Rd6 {[%emt 0:24:43]} 25. Rd3 {[%emt 0:16:57]} Rhd8 {[%emt 0:04:21]} 26. Rhd1 {[%emt 0:01:16]} Bf6 {[%emt 0:05:05]} 27. g4 {[%emt 0:01:19]} Qg5 {[%emt 0:01:15]} 28. a3 {[%emt 0:09:05]} g6 {[%emt 0:03:23]} 29. hxg6 {[%emt 0:03:03]} Qxg6 {[%emt 0:00:37]} 30. Ka2 {[%emt 0:13:43]} h5 {[%emt 0:06:44]} 31. gxh5 {[%emt 0:02:30]} Qxh5 {[%emt 0:00:09]} 32. Qe3 {[%emt 0:02:32]} Qf5 {[%emt 0:12:59]} 33. Qe4 {[%emt 0:00:37]} Bg7 {[%emt 0:03:54]} 34. Qxf5 {[%emt 0:05:24]} exf5 {[%emt 0:00:04]} 35. Kb1 {[%emt 0:00:08]} Bf6 {[%emt 0:05:01]} 36. Kc2 {[%emt 0:00:36]} Kc7 {[%emt 0:01:45]} 37. R1d2 {[%emt 0:02:51]} b6 {[%emt 0:00:33]} 38. a4 {[%emt 0:00:30]} R8d7 {[%emt 0:00:29]} 39. d5 {[%emt 0:00:18]} cxd5 {[%emt 0:00:22]} 40. cxd5 {[%emt 0:00:22]} Kb7 {[%emt 0:00:34]} 41. Na1 {[%emt 0:05:18]} Rc7+ {[%emt 0:09:49]} 42. Kb1 {[%emt 0:03:35]} Bg5 {[%emt 0:14:01]} 43. Rd1 {[%emt 0:00:52]} Rh6 {[%emt 0:00:46]} 44. Nc2 {[%emt 0:09:50]} Rh2 {[%emt 0:00:28]} 45. Nd4 {[%emt 0:01:48]} Bf6 {[%emt 0:03:37]} 46. R1d2 {[%emt 0:03:16]} Rxd2 {[%emt 0:00:37]} 47. Rxd2 {[%emt 0:00:01]} Bxd4 {[%emt 0:00:48]} 48. Rxd4 {[%emt 0:00:02]} Rd7 {[%emt 0:00:13]} 49. d6 {[%emt 0:03:15]} Kc6 {[%emt 0:00:08]} 50. Rf4 {[%emt 0:00:05]} Kxd6 {[%emt 0:00:15]} 51. Rxf5 {[%emt 0:00:05]} Ke6 {[%emt 0:00:06]} 52. Rf4 {[%emt 0:00:53]} f5 {[%emt 0:00:34]} 53. Rc4 {[%emt 0:03:06]} Ke5 {[%emt 0:00:57]} 54. f4+ {[%emt 0:03:53]} Kd5 {[%emt 0:00:23]} 55. b3 {[%emt 0:01:03]} Re7 {[%emt 0:00:46]} 56. Rb4 {[%emt 0:00:31]} Re6 {[%emt 0:04:42]} 57. Kc2 {[%emt 0:01:15]} a5 {[%emt 0:00:21]} 58. Rc4 {[%emt 0:00:20]} Re3 {[%emt 0:00:17]} 59. Rc8 {[%emt 0:00:45]} Re4 {[%emt 0:00:17]} 60. Rb8 {[%emt 0:00:24]} Rb4 {[%emt 0:00:11]} 61. Kc3 {[%emt 0:00:36]} Ke4 {[%emt 0:00:14]} 62. Rh8 {[%emt 0:00:26]} Kxf4 {[%emt 0:00:17]} 63. Rh3 {[%emt 0:00:18]} Kg4 {[%emt 0:01:12]} 64. Rd3 {[%emt 0:00:21]} f4 {[%emt 0:00:32]} 65. Kd2 {[%emt 0:00:03]} f3 {[%emt 0:00:53]} 66. Ke1 {[%emt 0:00:44]} Kg3 {[%emt 0:00:23]} 67. Kf1 {[%emt 0:00:14]} Rh4 {[%emt 0:00:32]} 68. Kg1 {[%emt 0:00:07]} Rh2 {[%emt 0:00:14]} 69. Rc3 {[%emt 0:00:15]} Rb2 {[%emt 0:00:11]} 0-1